[Event "25th Troya Open 2017"]
[Site "Canakkale"]
[Date "2017.08.12"]
[Round "9.7"]
[White "Baltaci, Ismail Tarik"]
[Black "Tasan, Mehmet Askin"]
[Result "1-0"]
[ECO "C90"]
[WhiteElo "1946"]
[BlackElo "1957"]
[Annotator "NA"]
[PlyCount "135"]
[EventCountry "TUR"]
[SourceTitle "playchess.com"]
[Source "ChessBase"]
[SourceQuality "1"]
[TimeControl "5400+30"]

{[%evp 10,135,38,24,20,25,58,46,48,41,32767,32767,32767,32767,32767,29,26,32,55,54,74,50,108,84,92,76,143,136,144,138,177,158,176,176,289,294,413,432,477,453,440,447,473,501,464,365,408,400,487,487,509,338,581,510,452,551,443,346,385,429,422,317,277,262,218,206,206,191,224,206,245,227,238,203,218,208,266,327,320,319,474,479,491,496,722,820,727,514,32767,32767,32767,32767,519,533,547,415,426,370,394,329,356,418,32767,32767,32767,32767,32767,32767,32767,32767,711,538,607,591,690,32767,32767,32767,32767,32767,788,847,864,965,862,1011,1846,2132]} 1. e4 {[%emt 0:00:30]} e5 {[%emt 0:01:00]} 2. Nf3 {[%emt 0:00:30]} Nc6 {[%emt 0:00:30]} 3. Bb5 {[%emt 0:00:30]} a6 {[%emt 0:00:30]} 4. Ba4 {[%emt 0:00:30]} Nf6 {[%emt 0:00:30]} 5. O-O {[%emt 0:00:00]} b5 {[%emt 0:00:00]} 6. Bb3 {[%emt 0:00:00]} d6 {[%emt 0:00:00]} 7. c3 {[%emt 0:02:30]} (7. Ng5 $5 {[%cal Rg5f7]} d5 8. exd5 $11) 7... Bg4 {[%emt 0:00:30]} 8. Re1 {[%emt 0:02:30]} Be7 {[%emt 0:00:30]} 9. d3 {[%emt 0:00:30]} O-O {[%emt 0:00:30]} 10. Nbd2 {[%emt 0:00:30]} Qd7 {[%emt 0:00:30]} 11. h3 {[%emt 0:00:30]} Be6 {[%emt 0:00:30]} 12. d4 {[%emt 0:04:30]} Bxb3 {[%emt 0:00:30]} 13. Qxb3 {[%emt 0:04:30] LiveBook: 11 Games} g6 {[%emt 0:02:30] C92: Closed Ruy Lopez: 9...Be6, Karpov and Flohr-Zaitsev Variations} (13... Rfe8 14. a4 Rab8 15. axb5 axb5 16. Nf1 b4 17. d5 Nd8 18. Ra7 Qc8 19. cxb4 c6 20. Bg5 cxd5 21. Rc1 Qe6 22. Bxf6 Qxf6 23. exd5 {1-0 (86) Baramidze,D (2613)-Postny,E (2631) Germany 2014}) 14. Nf1 {[%emt 0:01:30]} Kg7 $146 {[%emt 0:00:30]} ({Predecessor:} 14... Rfc8 15. Bg5 Na5 16. Qd1 Nh5 17. Bh6 exd4 18. cxd4 Nf6 19. b3 d5 20. Ne5 Qd6 21. Nxf7 Kxf7 {1-0 (28) Cilloniz Razzeto,A (2301)-Rouse Pasara,C (2132) ICCF email 2006}) 15. Ng3 {[%emt 0:01:30]} Ng8 {[%emt 0:04:30]} (15... Rfb8 $14) 16. Be3 {[%emt 0:03:30]} Na5 {[%emt 0:02:30]} 17. Qd1 {[%emt 0:03:30]} exd4 {[%emt 0:02:30]} ({Black should play} 17... Nc4) 18. cxd4 {[%emt 0:02:30]} Nc4 {[%emt 0:00:30] [#]} 19. Bc1 $1 {[%emt 0:00:00]} Rad8 {[%emt 0:03:30]} 20. b3 {[%emt 0:03:00]} Nb6 {[%emt 0:01:30]} 21. Bb2 {[%emt 0:03:30]} f6 {[%emt 0:01:30]} (21... d5 $142 22. Ne5 Qc8) 22. d5 {[%emt 0:02:30]} h6 {[%emt 0:00:30]} (22... Kh8 {is a better defense.} 23. Nd4 Ra8) 23. Nd4 {[%emt 0:00:30]} Rde8 {[%emt 0:01:30]} 24. Ne6+ {[%emt 0:03:30]} Kh7 {[%emt 0:00:30]} 25. h4 {[%emt 0:01:30]} Rf7 {[%emt 0:00:30]} 26. h5 {[%emt 0:00:30]} g5 {[%emt 0:01:30]} 27. Qg4 {[%emt 0:01:30]} Bf8 {[%emt 0:02:30]} 28. f4 {[%emt 0:17:30]} c5 {[%emt 0:04:30]} 29. Rf1 {[%emt 0:07:30]} Bg7 {[%emt 0:02:30]} 30. Qf5+ {[%emt 0:10:30]} Kh8 {[%emt 0:00:30]} 31. Qg6 {[%emt 0:00:30]} Rxe6 {[%emt 0:01:30]} 32. dxe6 {[%emt 0:00:30]} Qxe6 {[%emt 0:00:00]} 33. Qf5 {[%emt 0:00:30]} Re7 {[%emt 0:03:00]} 34. Rad1 {[%emt 0:01:30]} Nc8 {[%emt 0:02:30]} 35. Qxe6 {[%emt 0:00:30]} Rxe6 {[%emt 0:00:30]} 36. Rd2 {[%emt 0:02:30]} Kh7 {[%emt 0:00:30]} 37. fxg5 {[%emt 0:01:08]} hxg5 {[%emt 0:00:00]} 38. Re1 {[%emt 0:01:04]} Nge7 {[%emt 0:00:00]} 39. Kf2 {[%emt 0:00:56]} Nc6 {[%emt 0:01:30]} 40. Nf5 {[%emt 0:00:38]} Bf8 {[%emt 0:00:30]} 41. Kf3 {[%emt 0:03:57]} a5 {[%emt 0:05:30]} 42. Red1 {[%emt 0:01:01]} Nd8 {[%emt 0:02:30]} 43. Ne3 {[%emt 0:01:02]} Nf7 {[%emt 0:00:30]} 44. Nd5 {[%emt 0:00:17]} g4+ {[%emt 0:02:30]} 45. Kxg4 {[%emt 0:00:18]} Bg7 {[%emt 0:10:30]} 46. Kf5 {[%emt 0:01:15]} Nd8 {[%emt 0:01:30]} 47. Nxf6+ {[%emt 0:00:55]} Kh8 {[%emt 0:00:30]} 48. Nd5 {[%emt 0:01:07]} Bxb2 {[%emt 0:00:30]} 49. Rxb2 {[%emt 0:00:01]} Re5+ {[%emt 0:00:00]} 50. Kg4 {[%emt 0:00:34]} Rxe4+ {[%emt 0:01:00]} 51. Kf3 {[%emt 0:00:07]} Re8 {[%emt 0:01:30]} 52. Nf4 {[%emt 0:01:13]} Nf7 {[%emt 0:00:30]} 53. Ng6+ {[%emt 0:00:22]} Kg7 {[%emt 0:00:00]} 54. Kf2 {[%emt 0:01:46]} Nb6 {[%emt 0:01:00]} 55. Re2 {[%emt 0:00:11]} Rxe2+ {[%emt 0:00:30]} 56. Kxe2 {[%emt 0:00:02]} d5 {[%emt 0:00:30]} 57. Nf4 {[%emt 0:00:12]} d4 {[%emt 0:06:30]} 58. Ne6+ {[%emt 0:00:05]} Kh6 {[%emt 0:00:00]} 59. Nxc5 {[%emt 0:00:03]} Nd5 {[%emt 0:00:00]} 60. Ne4 {[%emt 0:01:12]} Nf4+ {[%emt 0:01:30]} 61. Kf3 {[%emt 0:00:13]} Ne6 {[%emt 0:00:30]} 62. g4 {[%emt 0:00:48]} Ne5+ {[%emt 0:00:30]} 63. Kg3 {[%emt 0:00:30]} d3 {[%emt 0:00:30]} 64. Nf2 {[%emt 0:00:16]} Kg5 {[%emt 0:00:30]} 65. Re1 {[%emt 0:00:58]} Kf6 {[%emt 0:01:30]} 66. Ne4+ {[%emt 0:01:27]} Ke7 {[%emt 0:00:30]} 67. g5 {[%emt 0:00:28]} Kf8 {[%emt 0:02:30]} 68. Nf2 $18 {[%emt 0:00:34]} 1-0

[Event "25th Troya Open 2017"]
[Site "Canakkale"]
[Date "2017.08.12"]
[Round "9.8"]
[White "Uzuner, Tufan Can"]
[Black "Yasin, Hur"]
[Result "1-0"]
[ECO "A80"]
[WhiteElo "1949"]
[BlackElo "1982"]
[Annotator "NA RC"]
[PlyCount "91"]
[EventCountry "TUR"]
[SourceTitle "playchess.com"]
[Source "ChessBase"]
[SourceQuality "1"]
[TimeControl "5400+30"]

{[%evp 8,90,85,41,45,62,50,39,86,91,133,80,119,85,79,96,105,108,137,65,84,96,140,132,135,179,149,148,170,150,384,393,379,414,420,418,398,67,77,64,75,0,718,848,5493,29952,2399,32767,29966,29968,32767,32767,32767,32767,32767,29973,6327,8,12835,29974,29970,29977,29949,29979,29979,29980,29978,491,29984,0,29972,29975,29980,656,29986,29987,29986,29983,29981,29984,29982,29985,29985,29986,29986]} 1. d4 {[%emt 0:00:30]} f5 {[%emt 0:01:00]} 2. Bg5 {[%emt 0:01:30]} g6 {[%emt 0:00:30]} 3. Nc3 {[%emt 0:00:00]} h6 {[%emt 0:02:30]} 4. Bh4 {[%emt 0:01:00]} d5 {[%emt 0:04:30]} 5. f3 {[%emt 0:08:30]} Bg7 {[%emt 0:00:30]} 6. Qd2 {[%emt 0:03:30]} Nc6 {[%emt 0:12:30]} 7. e4 {[%emt 0:09:30]} Nxd4 {[%emt 0:24:30]} 8. exd5 {[%emt 0:01:30]} a6 {[%emt 0:04:30] [#]} ({Black should try} 8... c5) 9. Nge2 {[%emt 0:04:30]} ({Better is} 9. O-O-O $1) 9... c5 {[%emt 0:06:30]} 10. Bf2 {[%emt 0:07:30]} Nxe2 {[%emt 0:05:30]} 11. Bxe2 {[%emt 0:00:30]} b6 {[%emt 0:00:00]} 12. O-O-O {[%emt 0:01:30]} Nf6 {[%emt 0:02:00]} 13. h4 {[%emt 0:06:30]} (13. d6 $16) 13... Qd6 {[%emt 0:00:30]} 14. Be3 {[%emt 0:02:30]} Bb7 {[%emt 0:09:30]} 15. Bf4 {[%emt 0:09:30]} Qd7 {[%emt 0:00:00]} 16. Rhe1 {[%emt 0:04:30]} b5 {[%emt 0:01:00]} 17. d6 {[%emt 0:04:30]} e6 {[%emt 0:01:30]} 18. Qe3 {[%emt 0:03:30]} Rc8 $2 {[%emt 0:06:02] [#]} (18... Kf7 $16) 19. Nxb5 $1 {[%emt 0:03:30]} Nd5 {[%emt 0:07:08]} ({Worse is} 19... axb5 {[#]} 20. Bxb5 $1 {[%mdl 512]} Bc6 21. Bc4 $18) 20. Rxd5 {[%emt 0:02:30]} Bxd5 {[%emt 0:00:14]} 21. Nc7+ {[%emt 0:01:30]} Kf7 {[%emt 0:00:19]} 22. Nxd5 $2 {[%emt 0:01:30]} (22. Bxa6 $18 Rb8 23. Nxd5 (23. Qxc5 Bxb2+ 24. Kd2 Qc6 $18) 23... Bxb2+ 24. Kd2) 22... exd5 {[%emt 0:00:36]} 23. Qd2 $1 {[%emt 0:05:07]} ({Weaker is} 23. Bxa6 Rce8 $15) 23... Qb7 {[%emt 0:01:27]} 24. Bb5 {[%emt 0:03:02]} Kg8 $2 {[%emt 0:04:18]} ({But not} 24... Qxb5 $2 25. Qxd5+ Kf8 26. d7 $18) (24... Bxb2+ $11 25. Kxb2 Rce8) 25. Re7 {[%emt 0:02:34]} ({Inferior is} 25. d7 Rd8 $11) 25... Qxb5 {[%emt 0:03:38]} 26. Qxd5+ {[%emt 0:00:13]} Kh7 {[%emt 0:00:00] [#]} 27. Rxg7+ $1 {[%emt 0:00:53]} Kxg7 {[%emt 0:00:07] [#]} 28. Qe5+ $1 {[%emt 0:00:30]} Kf7 {[%emt 0:00:30]} 29. Qe7+ {[%emt 0:00:30]} Kg8 {[%emt 0:00:30]} 30. Qe6+ {[%emt 0:00:00]} Kf8 {[%emt 0:02:37]} 31. Qf6+ {[%emt 0:02:08]} Kg8 {[%emt 0:00:01]} 32. Qxg6+ {[%emt 0:00:00]} Kf8 {[%emt 0:00:03]} 33. Qxf5+ {[%emt 0:00:12]} Kg8 {[%emt 0:00:54]} 34. Qxc8+ {[%emt 0:00:12]} Kh7 {[%emt 0:01:21]} 35. Qf5+ {[%emt 0:00:30]} Kg8 {[%emt 0:00:00]} 36. Qe6+ $2 {[%emt 0:00:57]} Kf8 {[%emt 0:00:29]} 37. Qe7+ {[%emt 0:00:52]} Kg8 {[%emt 0:00:04]} 38. Qe6+ {[%emt 0:01:10]} Kf8 {[%emt 0:00:11]} 39. Qf6+ $142 {[%emt 0:01:30]} Kg8 {[%emt 0:00:03]} 40. b3 {[%emt 0:00:00]} (40. Qg6+ Kf8 41. Bxh6+ Rxh6 42. Qxh6+ Kf7 43. Qh7+ Kf6 44. Qe7+ Kf5 45. d7 Qf1+ 46. Kd2 Qxg2+ 47. Qe2) 40... Rh7 {[%emt 0:01:27]} 41. Qd8+ {[%emt 0:01:41]} Kf7 {[%emt 0:00:10]} 42. Qe7+ {[%emt 0:00:07]} (42. d7 Rh8 43. Qc7 Qxd7 44. Qxd7+ Kf6 45. Bd2) 42... Kg8 {[%emt 0:00:48]} 43. Qe6+ {[%emt 0:00:26]} Rf7 {[%emt 0:00:36]} 44. Bxh6 {[%emt 0:01:15]} Qd7 {[%emt 0:01:26]} 45. Qg6+ {[%emt 0:01:06]} Kh8 {[%emt 0:00:03]} 46. Bd2 {[%emt 0:00:00]} 1-0

[Event "25th Troya Open 2017"]
[Site "Canakkale"]
[Date "2017.08.12"]
[Round "9.9"]
[White "Algunerhan, Siar"]
[Black "Sar, Can"]
[Result "1-0"]
[ECO "B77"]
[WhiteElo "1742"]
[BlackElo "1619"]
[Annotator "NA RC"]
[PlyCount "47"]
[EventCountry "TUR"]
[SourceTitle "playchess.com"]
[Source "ChessBase"]
[SourceQuality "1"]
[TimeControl "5400+30"]

1. e4 {[%emt 0:00:30]} c5 {[%emt 0:01:00]} 2. Nf3 {[%emt 0:00:30]} g6 {[%emt 0:00:30]} 3. d4 {[%emt 0:00:30]} cxd4 {[%emt 0:00:30]} 4. Nxd4 {[%emt 0:00:00]} Bg7 {[%emt 0:00:00]} 5. Nc3 {[%emt 0:00:00]} Nc6 {[%emt 0:00:00]} 6. Be3 {[%emt 0:00:30]} Nf6 {[%emt 0:00:00]} 7. Bc4 {[%emt 0:05:30]} O-O {[%emt 0:00:00]} 8. f3 {[%emt 0:03:30]} d6 {[%emt 0:00:30]} 9. Qd2 {[%emt 0:00:30]} Na5 {[%emt 0:06:30]} 10. Bb3 {[%emt 0:00:30]} Nxb3 {[%emt 0:00:30]} 11. axb3 {[%emt 0:01:30]} a6 {[%emt 0:01:30]} 12. h4 {[%emt 0:00:30]} h5 {[%emt 0:04:30]} 13. O-O-O {[%emt 0:02:30]} Qa5 {[%emt 0:03:30]} 14. Kb1 {[%emt 0:00:30]} Re8 {[%emt 0:06:30]} 15. Bg5 {[%emt 0:02:30]} Qd8 {[%emt 0:16:30]} 16. g4 {[%emt 0:02:30]} hxg4 {[%emt 0:05:30]} 17. h5 {[%emt 0:08:30]} Nh7 {[%emt 0:02:30]} 18. hxg6 {[%emt 0:01:30]} Nxg5 {[%emt 0:00:30]} 19. Qxg5 {[%emt 0:00:30]} f6 {[%emt 0:04:30]} 20. Qh5 {[%emt 0:00:30]} e6 {[%emt 0:03:30]} 21. fxg4 {[%emt 0:01:30]} Qb6 {[%emt 0:02:30]} 22. Qh7+ {[%emt 0:01:30]} Kf8 {[%emt 0:00:30]} 23. Rhf1 {[%emt 0:02:30]} Qc5 {[%emt 0:01:30]} 24. Rxf6+ {[%emt 0:00:30]} 1-0

[Event "25th Troya Open 2017"]
[Site "Canakkale"]
[Date "2017.08.12"]
[Round "9.10"]
[White "Yildirim, Ibrahim Halil"]
[Black "Ozkurt, Kutay"]
[Result "1-0"]
[ECO "C02"]
[WhiteElo "1670"]
[BlackElo "1686"]
[Annotator "NA RC"]
[PlyCount "129"]
[EventCountry "TUR"]
[SourceTitle "playchess.com"]
[Source "ChessBase"]
[SourceQuality "1"]
[TimeControl "5400+30"]

1. e4 {[%emt 0:00:30]} c5 {[%emt 0:05:00]} 2. Nf3 {[%emt 0:00:00]} e6 {[%emt 0:02:30]} 3. c3 {[%emt 0:00:00]} d5 {[%emt 0:00:30]} 4. e5 {[%emt 0:00:00]} Nc6 {[%emt 0:01:30]} 5. d4 {[%emt 0:00:00]} cxd4 {[%emt 0:00:30]} 6. cxd4 {[%emt 0:00:30]} h6 {[%emt 0:00:30]} 7. a3 {[%emt 0:00:30]} Bd7 {[%emt 0:01:30]} 8. b4 {[%emt 0:00:30]} Rc8 {[%emt 0:02:30]} 9. Bd3 {[%emt 0:01:30]} Nge7 {[%emt 0:02:30]} 10. O-O {[%emt 0:00:30]} Nf5 {[%emt 0:00:30]} 11. Be3 {[%emt 0:00:30]} a6 {[%emt 0:01:30]} 12. Qb3 {[%emt 0:05:30]} Qb6 {[%emt 0:03:30]} 13. Bxf5 {[%emt 0:05:30]} exf5 {[%emt 0:03:30]} 14. Nc3 {[%emt 0:00:00]} Be6 {[%emt 0:00:30]} 15. Rab1 {[%emt 0:06:00]} f4 {[%emt 0:05:30]} 16. Na4 {[%emt 0:09:30]} Qa7 {[%emt 0:00:30]} 17. Bxf4 {[%emt 0:02:30]} Nxd4 {[%emt 0:00:00]} 18. Qe3 {[%emt 0:01:30]} Nxf3+ {[%emt 0:05:00]} 19. Qxf3 {[%emt 0:00:00]} Be7 {[%emt 0:00:30]} 20. Rfd1 {[%emt 0:03:00]} h5 {[%emt 0:04:30]} 21. Qg3 {[%emt 0:04:30]} Rg8 {[%emt 0:03:30]} 22. Be3 {[%emt 0:03:30]} Qb8 {[%emt 0:02:30]} 23. Bc5 {[%emt 0:02:30]} g5 {[%emt 0:22:30]} 24. h4 {[%emt 0:08:30]} Qc7 {[%emt 0:06:30]} 25. Bd6 {[%emt 0:16:30]} Bxd6 {[%emt 0:01:30]} 26. exd6 {[%emt 0:00:30]} Qc6 {[%emt 0:00:00]} 27. Nc5 {[%emt 0:01:30]} Rd8 {[%emt 0:00:00]} 28. hxg5 {[%emt 0:00:00]} Qxd6 {[%emt 0:00:30]} 29. Qh4 {[%emt 0:07:00]} Qe7 {[%emt 0:00:30]} 30. f4 {[%emt 0:04:20]} b6 {[%emt 0:07:49]} 31. Nxa6 {[%emt 0:02:01]} Ra8 {[%emt 0:00:11]} 32. b5 {[%emt 0:00:06]} Qd6 {[%emt 0:02:06]} 33. Rbc1 {[%emt 0:03:38]} Rc8 {[%emt 0:00:14]} 34. Rxc8+ {[%emt 0:01:46]} Bxc8 {[%emt 0:00:05]} 35. Rxd5 {[%emt 0:00:42]} Qxa3 {[%emt 0:05:51]} 36. Qe1+ {[%emt 0:08:49]} Kf8 {[%emt 0:06:32]} 37. Qb4+ {[%emt 0:01:41]} Qxb4 {[%emt 0:00:56]} 38. Nxb4 {[%emt 0:00:01]} Bb7 {[%emt 0:01:02]} 39. Rd7 {[%emt 0:01:29]} Be4 {[%emt 0:00:17]} 40. Nc6 {[%emt 0:01:30]} Kg7 {[%emt 0:04:30]} 41. Ne5 {[%emt 0:00:34]} Rf8 {[%emt 0:00:23]} 42. Rd6 {[%emt 0:01:12]} f6 {[%emt 0:00:06]} 43. Nd7 {[%emt 0:00:22]} Rd8 {[%emt 0:00:26]} 44. gxf6+ {[%emt 0:00:25]} Kg8 {[%emt 0:01:16]} 45. f7+ {[%emt 0:00:48]} Kxf7 {[%emt 0:00:14]} 46. Ne5+ {[%emt 0:00:16]} Ke8 {[%emt 0:00:09]} 47. Rxb6 {[%emt 0:00:39]} Rd1+ {[%emt 0:00:08]} 48. Kh2 {[%emt 0:00:00]} Rd2 {[%emt 0:00:14]} 49. Rb8+ {[%emt 0:00:00]} Ke7 {[%emt 0:00:19]} 50. Rg8 {[%emt 0:00:05]} Rb2 {[%emt 0:00:14]} 51. Rg5 {[%emt 0:00:20]} Rf2 {[%emt 0:00:18]} 52. b6 {[%emt 0:02:07]} Rxf4 {[%emt 0:01:10]} 53. b7 {[%emt 0:00:10]} Rf8 {[%emt 0:00:13]} 54. Ng6+ {[%emt 0:00:46]} Bxg6 {[%emt 0:00:05]} 55. Rxg6 {[%emt 0:00:00]} Kd7 {[%emt 0:01:25]} 56. Rb6 {[%emt 0:00:00]} Kc7 {[%emt 0:01:13]} 57. b8=Q+ {[%emt 0:00:00]} Rxb8 {[%emt 0:00:00]} 58. Rxb8 {[%emt 0:00:00]} Kxb8 {[%emt 0:00:05]} 59. Kh3 {[%emt 0:00:00]} Kc8 {[%emt 0:00:00]} 60. Kh4 {[%emt 0:00:33]} Kd8 {[%emt 0:00:16]} 61. Kxh5 {[%emt 0:00:00]} Ke7 {[%emt 0:00:00]} 62. Kg6 {[%emt 0:00:00]} Kf8 {[%emt 0:00:00]} 63. g4 {[%emt 0:00:00]} Kg8 {[%emt 0:00:01]} 64. g5 {[%emt 0:01:08]} Kh8 {[%emt 0:00:38]} 65. Kf7 {[%emt 0:00:04]} 1-0

[Event "25th Troya Open 2017"]
[Site "Canakkale"]
[Date "2017.08.12"]
[Round "9.11"]
[White "Erdal, Kerem"]
[Black "Demirtas, Hafize"]
[Result "0-1"]
[ECO "C41"]
[WhiteElo "1579"]
[BlackElo "1708"]
[Annotator "NA RC"]
[PlyCount "126"]
[EventCountry "TUR"]
[SourceTitle "playchess.com"]
[Source "ChessBase"]
[SourceQuality "1"]
[TimeControl "5400+30"]

1. e4 {[%emt 0:00:30]} d6 {[%emt 0:01:00]} 2. d4 {[%emt 0:00:30]} Nf6 {[%emt 0:00:30]} 3. Nc3 {[%emt 0:00:30]} Nbd7 {[%emt 0:00:30]} 4. Nf3 {[%emt 0:00:30]} e5 {[%emt 0:00:00]} 5. Bc4 {[%emt 0:00:00]} Be7 {[%emt 0:00:00]} 6. O-O {[%emt 0:00:00]} O-O {[%emt 0:00:00]} 7. h3 {[%emt 0:00:30]} c6 {[%emt 0:00:00]} 8. a4 {[%emt 0:06:30]} Qc7 {[%emt 0:01:30]} 9. Bg5 {[%emt 0:03:30]} b6 {[%emt 0:01:30]} 10. d5 {[%emt 0:05:30]} Bb7 {[%emt 0:04:30]} 11. Nh4 {[%emt 0:09:30]} Rfe8 {[%emt 0:12:30]} 12. Nf5 {[%emt 0:02:30]} Bf8 {[%emt 0:06:30]} 13. Qf3 {[%emt 0:21:30]} a6 {[%emt 0:12:30]} 14. Qg3 {[%emt 0:09:30]} g6 {[%emt 0:10:30]} 15. dxc6 {[%emt 0:04:30]} Qxc6 {[%emt 0:06:30]} 16. Bd5 {[%emt 0:08:30]} Qc7 {[%emt 0:04:30]} 17. Bxb7 {[%emt 0:00:30]} Qxb7 {[%emt 0:00:30]} 18. Rfe1 {[%emt 0:04:30]} Kh8 {[%emt 0:09:30]} 19. Qh4 {[%emt 0:05:12]} Ng8 {[%emt 0:01:30]} 20. Ng3 {[%emt 0:13:36]} Kg7 {[%emt 0:03:30]} 21. Qg4 {[%emt 0:01:18]} h6 {[%emt 0:02:30]} 22. Bh4 {[%emt 0:00:59]} Kh7 {[%emt 0:03:19]} 23. Nd5 {[%emt 0:00:25]} Bg7 {[%emt 0:02:03]} 24. Ne2 {[%emt 0:00:36]} f5 {[%emt 0:01:45]} 25. exf5 {[%emt 0:00:36]} g5 {[%emt 0:00:46]} 26. f6 {[%emt 0:00:39]} Ndxf6 {[%emt 0:04:24]} 27. Qf5+ {[%emt 0:00:30]} Kh8 {[%emt 0:00:30]} 28. Nxf6 {[%emt 0:00:30]} Bxf6 {[%emt 0:00:30]} 29. Bg3 {[%emt 0:00:30]} Kg7 {[%emt 0:00:30]} 30. Rad1 {[%emt 0:00:00]} Ne7 {[%emt 0:00:00]} 31. Qe6 {[%emt 0:00:00]} Rad8 {[%emt 0:05:00]} 32. Rxd6 {[%emt 0:01:14]} Nd5 {[%emt 0:00:37]} 33. Qxd5 {[%emt 0:00:41]} Qxd5 {[%emt 0:00:12]} 34. Rxd5 {[%emt 0:00:30]} Rxd5 {[%emt 0:00:04]} 35. Nc3 {[%emt 0:00:00]} Rd2 {[%emt 0:00:45]} 36. Rc1 {[%emt 0:00:30]} e4 {[%emt 0:00:09]} 37. Nd1 {[%emt 0:01:09]} Red8 {[%emt 0:00:23]} 38. Ne3 {[%emt 0:00:00]} Bxb2 {[%emt 0:02:12]} 39. Rb1 {[%emt 0:00:00]} Bd4 {[%emt 0:00:18]} 40. Bc7 {[%emt 0:00:44]} Rf8 {[%emt 0:00:32]} 41. Bxb6 {[%emt 0:00:28]} Bxb6 {[%emt 0:01:03]} 42. Rxb6 {[%emt 0:00:07]} Rf6 {[%emt 0:00:22]} 43. Rb7+ {[%emt 0:00:26]} Kg8 {[%emt 0:01:03]} 44. Ng4 {[%emt 0:00:49]} Rc6 {[%emt 0:00:01]} 45. Ne3 {[%emt 0:00:20]} h5 {[%emt 0:01:03]} 46. Re7 {[%emt 0:00:49]} Rf6 {[%emt 0:01:39]} 47. Rxe4 {[%emt 0:00:34]} Kf7 {[%emt 0:01:56]} 48. Re5 {[%emt 0:00:29]} Kg6 {[%emt 0:00:31]} 49. f3 {[%emt 0:00:33]} Rdd6 {[%emt 0:00:57]} 50. Rc5 {[%emt 0:00:43]} Rfe6 {[%emt 0:00:39]} 51. Nc4 {[%emt 0:00:31]} Rd1+ {[%emt 0:00:12]} 52. Kf2 {[%emt 0:00:22]} Kf6 {[%emt 0:00:10]} 53. Ra5 {[%emt 0:00:38]} Ra1 {[%emt 0:00:53]} 54. Ne3 {[%emt 0:00:14]} Ra3 {[%emt 0:00:27]} 55. Nd5+ {[%emt 0:00:10]} Kg6 {[%emt 0:00:51]} 56. Nb4 {[%emt 0:01:11]} Rc3 {[%emt 0:00:33]} 57. Kg1 {[%emt 0:00:58]} Rc4 {[%emt 0:00:42]} 58. Nxa6 {[%emt 0:00:35]} Rxc2 {[%emt 0:00:29]} 59. Nb4 {[%emt 0:00:08]} Rd2 {[%emt 0:00:18]} 60. Rb5 {[%emt 0:01:24]} Ree2 {[%emt 0:00:28]} 61. Rb6+ {[%emt 0:00:17]} Kf5 {[%emt 0:00:43]} 62. g4+ {[%emt 0:00:49]} Kf4 {[%emt 0:00:47]} 63. Rc6 {[%emt 0:00:39]} Rd1# {[%emt 0:00:30]} 0-1

[Event "25th Troya Open 2017"]
[Site "Canakkale"]
[Date "2017.08.12"]
[Round "9.12"]
[White "Istekli, Erdem"]
[Black "Erturk, Baris"]
[Result "1-0"]
[ECO "B27"]
[WhiteElo "1696"]
[BlackElo "1415"]
[Annotator "NA RC"]
[PlyCount "43"]
[EventCountry "TUR"]
[SourceTitle "playchess.com"]
[Source "ChessBase"]
[SourceQuality "1"]
[TimeControl "5400+30"]

1. e4 {[%emt 0:00:30]} c5 {[%emt 0:01:00]} 2. Nf3 {[%emt 0:00:30]} g6 {[%emt 0:00:00]} 3. d4 {[%emt 0:03:30]} cxd4 {[%emt 0:00:00]} 4. Qxd4 {[%emt 0:01:30]} Nf6 {[%emt 0:00:30]} 5. e5 {[%emt 0:00:30]} Nc6 {[%emt 0:00:00]} 6. Qa4 {[%emt 0:00:30]} Nd5 {[%emt 0:00:00]} 7. Qe4 {[%emt 0:00:30]} Nc7 {[%emt 0:05:30]} 8. Bc4 {[%emt 0:11:30]} Bg7 {[%emt 0:03:30]} 9. O-O {[%emt 0:05:30]} O-O {[%emt 0:03:30]} 10. Nc3 {[%emt 0:02:30]} b6 {[%emt 0:07:30]} 11. Re1 {[%emt 0:11:30]} Bb7 {[%emt 0:05:30]} 12. Qh4 {[%emt 0:21:30]} Ne6 {[%emt 0:06:30]} 13. Bh6 {[%emt 0:06:30]} Bxh6 {[%emt 0:17:30]} 14. Qxh6 {[%emt 0:00:00]} Nb4 {[%emt 0:01:30]} 15. Bxe6 {[%emt 0:09:00]} Bxf3 {[%emt 0:02:30]} 16. Bb3 {[%emt 0:00:30]} Bc6 {[%emt 0:04:30]} 17. Ne4 {[%emt 0:01:30]} Bxe4 {[%emt 0:01:30]} 18. Rxe4 {[%emt 0:01:30]} Re8 {[%emt 0:01:30]} 19. Rh4 {[%emt 0:03:04]} e6 {[%emt 0:00:30]} 20. Qxh7+ {[%emt 0:00:30]} Kf8 {[%emt 0:00:30]} 21. Qh8+ {[%emt 0:00:02]} Ke7 {[%emt 0:00:00]} 22. Qf6+ {[%emt 0:00:00]} 1-0